Cogmind - Beta 15 @@@ ROGUE MODE // 2025.06.10 @ 11:32:02 Player: puppuppit Result: Destroyed by 9I-PQV(R) with Subdweller Laser Performance ------------- Evolutions (0) 0 Regions Visited (2) 400 Robots Destroyed (32) 160 Value Destroyed (507) 507 Prototype IDs (3) 60 Alien Tech Used (0) 0 Bonus (0) 0 TOTAL SCORE: 1127 Bonus ------- None Cogmind --------- Core Integrity 0/250 Matter 262/300 Energy 54/100 System Corruption 1% Temperature Cool (6) Movement Core (150) Ox2 Location -10/Subcaves Parts ------- > --- POWER (1) -------- (None) > --- PROPULSION (2) --- Subdweller Monowheel > --- UTILITY (2) ------ (None) > --- WEAPON (2) ------- Beamcaster Assault Rifle > --- INVENTORY (5) ---- Medium Storage Unit Peak State ------------ > --- POWER ------------ Cooled Ion Engine > --- PROPULSION ------- Improved Aluminum Leg Improved Aluminum Leg > --- UTILITY ---------- Small Storage Unit Improved Terrain Scanner > --- WEAPON ----------- Particle Gun Assault Rifle > --- INVENTORY -------- Cooled Ion Engine Cooled Ion Engine Improved Aluminum Leg Improved Aluminum Leg Small Matter Pod Small Matter Pod Improved Terrain Scanner Improved Terrain Scanner [Rating: 15] Favorites ----------- Power Cooled Ion Engine Engine Cooled Ion Engine Propulsion Light Treads Treads Light Treads Leg Improved Aluminum Leg Wheel Subdweller Monowheel Utility Improved Terrain Scanner Device Improved Terrain Scanner Storage Small Storage Unit Processor Targeting Computer Protection Scrap Shield Weapon Assault Rifle Energy Gun Particle Gun Ballistic Gun Assault Rifle Ballistic Cannon Light Cannon Launcher Grenade Launcher Build | -11 -10 -10 ------- Run | Yrd Mat Sub Slots Evolved . | . . . Power . | . . . Propulsion . | . . . Utility . | . . . Weapon . | . . . Parts Attached 24 | 7 11 6 Power 2 | 1 1 . Engine 2 | 1 1 . Core . | . . . Reactor . | . . . Propulsion 7 | 2 4 1 Treads 4 | 2 2 . Leg 2 | . 2 . Wheel 1 | . . 1 Hover . | . . . Flight . | . . . Utility 8 | 2 4 2 Device 2 | 1 1 . Storage 3 | 1 2 . Processor 1 | . 1 . Hackware . | . . . Protection 2 | . . 2 Artifact . | . . . Weapon 7 | 2 2 3 Energy Gun 3 | 1 1 1 Energy Cannon . | . . . Ballistic Gun 2 | 1 . 1 Ballistic Cannon 1 | . 1 . Launcher 1 | . . 1 Special Weapon . | . . . Impact Weapon . | . . . Slashing Weapon . | . . . Piercing Weapon . | . . . Special Melee Weapon . | . . . Unidentified Prototypes 1 | . 1 . Parts Lost 9 | . 1 8 Power 1 | . . 1 Propulsion 2 | . . 2 Utility 3 | . 1 2 Weapon 3 | . . 3 Highest Loss Streak 5 | . 1 5 To Critical Strikes 1 | . . 1 Average Backups 7 | . 8 8 Power 1 | . 1 1 Propulsion . | . . . Utility 3 | . 3 6 Weapon 1 | . 1 . Tool/Special . | . . . Unused Backups 12 | . 6 6 Power 2 | . . 2 Propulsion 2 | . 2 . Utility 7 | . 3 4 Weapon 1 | . 1 . Tool/Special . | . . . Average Slot Usage (%) 95 | . 99 71 Engine 13 | . 14 11 Treads 14 | . 15 6 Leg 10 | . 12 . Wheel 1 | . . 9 Device 7 | . 8 . Storage 13 | . 14 11 Processor 5 | . 4 11 Energy Gun 6 | . 7 1 Ballistic Gun 13 | . 14 13 Ballistic Cannon 6 | . 6 3 Peak Build Rating 15 | 9 15 12 Average Rating 11 | 7 12 9 On Entrance 6 | . 9 10 Naked Turns . | . . . Heaviest Build 33 | 14 33 33 Greatest Support 40 | 40 40 40 Greatest Overweight (x) 9 | . 1 9 Average Overweight (x) . | . . 1 Largest Inventory Capacity 15 | 8 15 15 Average Capacity 10 | 7 10 12 Most Carried 12 | 4 10 12 Average Carried 7 | . 8 9 Final Capacity 15 | 8 15 5 Final Carried 9 | 4 9 1 Class Distribution -------------------- 87% | Mutant 12% | Scavenger-Mutant Dominant Class ---------------- Mutant | -10/Materials Mutant | -10/Subcaves Resources | -11 -10 -10 ----------- Run | Yrd Mat Sub Matter Collected 963 | 392 482 89 Remotely . | . . . Salvage Created 1049 | 172 820 57 Parts 75 | 18 54 3 Haulers Intercepted 1 | . 1 . Recyclers Shooed 4 | 2 2 . Parts Field Recycled . | . . . Retrieved Matter . | . . . Parts Self-Destructed 3 | . . 3 Prevented . | . . . Kills | -11 -10 -10 ------- Run | Yrd Mat Sub Combat Hostiles Destroyed 15 | . 14 1 Guns 12 | . 11 1 Cannons 3 | . 3 . Classes Destroyed 9 | 3 5 1 Worker 4 | 2 2 . Builder 2 | . 2 . Tunneler 3 | 3 . . Hauler 1 | . 1 . Recycler 4 | 1 3 . Watcher 3 | . 3 . Swarmer 6 | . 6 . Grunt 8 | . 8 . Subdweller 1 | . . 1 Best Kill Streak 7 | 3 7 1 Combat Bots Only 6 | . 6 1 Max Kills in Single Turn 2 | 1 2 1 Gunslinging 1 | . 1 . Exploded . | . . . Melee . | . . . Uniques/NPCs Destroyed . | . . . Combat | -11 -10 -10 -------- Run | Yrd Mat Sub Hostile Shots Fired 121 | . 68 53 Missed 32 | . 16 16 Hits 89 | . 52 37 Projectile 89 | . 52 37 AOE 3 | . . 3 Critical Strikes 3 | . 1 2 Damage Taken 1588 | . 606 982 Core 253 | . 143 110 Absorbed by Shields . | . . . Core Remaining (%) 100 | 100 . . Volleys Fired 91 | 24 52 15 Largest 2 | 2 2 2 Hottest 95 | 60 85 95 Shots Fired 175 | 46 104 25 Gun 146 | 46 82 18 Cannon 26 | . 22 4 Launcher 3 | . . 3 Special . | . . . Kinetic 114 | 24 74 16 Thermal 58 | 22 30 6 Explosive 3 | . . 3 Electromagnetic . | . . . Robot Hit Streak 23 | 4 8 23 Robot Miss Streak 5 | 2 5 . Penetration Max . | . . . Secondary Targets 2 | . 1 1 Max Gunslinging Chain 1 | . 1 1 Shots Hit Robots 112 | 26 64 22 Core Hits 43 | 7 32 4 Critical Kills . | . . . Critical Parts Destroyed 1 | . 1 . Critical Strikes 1 | . 1 . Destroy 1 | . 1 . Melee Attacks . | . . . Impact . | . . . Slashing . | . . . Piercing . | . . . Sneak Attacks . | . . . Combat Hostiles . | . . . Follow-up Attacks . | . . . Damage Inflicted 1747 | 306 1044 397 Guns 1295 | 306 709 280 Cannons 401 | . 335 66 Explosions 51 | . . 51 Melee . | . . . Ramming . | . . . Kinetic 1167 | 185 764 218 Thermal 529 | 121 280 128 Explosive 51 | . . 51 Electromagnetic . | . . . Impact . | . . . Slashing . | . . . Piercing . | . . . Highest Corruption 1 | . 1 1 Average Corruption 1 | . 1 1 Corruption Purged . | . . . Corruption Blocked . | . . . Effects 8 | . 8 . Message Errors 1 | . 1 . Matter Fused 5 | . 5 . Heat Flow Errors 1 | . 1 . Energy Discharges 1 | . 1 . Overload Shots . | . . . Overflow Damage 15 | . 15 . Projectiles 15 | . 15 . Explosions . | . . . Melee . | . . . Knockbacks 2 | . 1 1 Impact . | . . . Kinetic 2 | . 1 1 Secondary . | . . . Self-Inflicted Damage . | . . . Shots . | . . . Rammed . | . . . Targets Rammed . | . . . Kicked . | . . . Crushed . | . . . Highest Temperature 171 | . 171 . Average Temperature 43 | . 43 . Received Heat Transfer 450 | . 210 240 Siege Activations . | . . . Martial Activations . | . . . Shielding Activations . | . . . Robots Disrupted . | . . . Combat Hostiles . | . . . Robots Corrupted . | . . . Combat Hostiles . | . . . Parts Fried . | . . . Impact Corruptions . | . . . Robots Melted . | . . . Combat Hostiles . | . . . Parts Melted 1 | . . 1 Heat Transferred 1163 | 275 666 222 Parts Sabotaged . | . . . Parts Stolen . | . . . Parts Stripped . | . . . Power Chain Reactions . | . . . Alert | -11 -10 -10 ------- Run | Yrd Mat Sub Maximum Alert Level . | . . . Low Security (%) 100 | 100 100 . Level 1 . | . . . Level 2 . | . . . Level 3 . | . . . Level 4 . | . . . Level 5 . | . . . High Security . | . . . Max Security . | . . . Peak Influence 107 | 10 107 . Initial . | . . . Average 42 | 1 49 . Influence Increases 501 | 30 471 . Destroy 0b10 Robot/C 280 | . 280 . Destroy 0b10 Robot/NC 85 | 30 55 . Destroy Leader 68 | . 68 . Successful Hack 22 | . 22 . Select Force Hacks 30 | . 30 . Destroy Structure 1 | . 1 . Lose Combat Pursuer 15 | . 15 . Influence Decreases 501 | 30 437 34 Entered New Map 17 | . . 17 Time Decay 467 | 30 427 10 Lost Part 17 | . 10 7 Squads Dispatched 3 | . 3 . Investigation 3 | . 3 . Extermination . | . . . Reinforcement . | . . . Assault . | . . . Garrison . | . . . Intercept . | . . . Searches Triggered . | . . . Construction Impeded . | . . . Haulers Reinforced . | . . . Active Scanning Responses . | . . . Cargo Convoy Interrupts . | . . . Stealth | -11 -10 -10 --------- Run | Yrd Mat Sub Distress Signals 2 | . 2 . Communications Jammed . | . . . Distress Signals . | . . . Times Spotted 34 | . 21 13 Peak Tracking Total 7 | . 4 7 Tactical Retreats 1 | . 1 . Traps | -11 -10 -10 ------- Run | Yrd Mat Sub Traps Triggered 2 | . 2 . Indirectly . | . . . Trap Hack Attempts . | . . . Triggered . | . . . Disarmed 1 | . 1 . Reprogrammed . | . . . Reused . | . . . Traps Extracted . | . . . Installed . | . . . Triggered . | . . . Machines | -11 -10 -10 ---------- Run | Yrd Mat Sub Machines Disabled . | . . . Max in Single Turn . | . . . Machines Repaired . | . . . Machines Dismantled . | . . . Machines Sabotaged . | . . . Overloaded Fab Kills . | . . . Hacking | -11 -10 -10 --------- Run | Yrd Mat Sub Machines Accessed 8 | . 8 . Terminals 6 | . 6 . Fabricators . | . . . Repair Stations . | . . . Recycling Units 2 | . 2 . Scanalyzers . | . . . Garrison Access . | . . . Total Hacks 25 | . 25 . Successful 15 | . 15 . Failed 9 | . 9 . Catastrophic . | . . . Database Lockouts 1 | . 1 . Manual 21 | . 21 . Terminals 23 | . 23 . Fabricators . | . . . Repair Stations . | . . . Recycling Units 2 | . 2 . Scanalyzers . | . . . Garrison Access . | . . . Terminal Hacks 7 | . 7 . Robot Analysis 3 | . 3 . Prototype ID Bank 1 | . 1 . Terminal Index 1 | . 1 . Locate Traps 1 | . 1 . Disarm Traps 1 | . 1 . Fabricator Hacks . | . . . Repair Station Hacks . | . . . Recycling Unit Hacks 1 | . 1 . Report Inventory 1 | . 1 . Scanalyzer . | . . . Garrison Access Hacks . | . . . Unauthorized Hacks 7 | . 7 . Terminals 6 | . 6 . Botnet 6 | . 6 . Fabricators . | . . . Repair Stations . | . . . Recycling Units 1 | . 1 . Tunnel 1 | . 1 . Scanalyzers . | . . . Garrison Access . | . . . Data Cores Recovered . | . . . Used . | . . . Hacking Detections 5 | . 5 . Full Trace Events 3 | . 3 . Feedback Events 1 | . 1 . Corruption 1 | . 1 . Feedback Blocked . | . . . Robot Schematics Acquired . | . . . Robots Built . | . . . Authchips . | . . . Time . | . . . Total Robot Build Rating . | . . . Part Schematics Acquired . | . . . Parts Built . | . . . Authchips . | . . . Time . | . . . Total Part Build Rating . | . . . Parts Repaired . | . . . Time . | . . . Parts Recycled . | . . . Recycled Matter . | . . . Retrieved Matter . | . . . Retrieved Components . | . . . Parts Scanalyzed . | . . . Part Schematics Acquired . | . . . Parts Damaged . | . . . Bothacking | -11 -10 -10 ------------ Run | Yrd Mat Sub Used RIF Installer . | . . . Robots Hacked . | . . . Non-combat . | . . . Combat . | . . . Robot Hacks Applied . | . . . Relay Couplers Released . | . . . Fabnet Peak Effective % . | . . . Robots Rewired . | . . . Allies Hacked . | . . . Hacks Repelled . | . . . Allies | -11 -10 -10 -------- Run | Yrd Mat Sub Total Allies . | . . . Largest Group . | . . . Highest-Rated Group . | . . . Highest-Rated Ally . | . . . Total Orders . | . . . Ally Attacks . | . . . Total Damage . | . . . Kills . | . . . Allies Corrupted . | . . . Allies Melted . | . . . Intel | -11 -10 -10 ------- Run | Yrd Mat Sub Active Infowar (turns) 800 | 108 692 . Terrain 800 | 108 692 . Robot Analysis Total 3 | . 3 . Derelict Logs Recovered . | . . . Drone Launches . | . . . Drone Recoveries . | . . . Exploration | -11 -10 -10 ------------- Run | Yrd Mat Sub Turns Passed 1537 | 210 1146 181 Spaces Moved 826 | 82 665 79 Core 13 | 4 . 9 Treads 429 | 78 341 10 Legs 324 | . 324 . Wheels 60 | . . 60 Hover . | . . . Flight . | . . . Fastest Speed 50 | 50 120 120 Average Speed 143 | 154 140 158 Slowest Speed 500 | 160 190 500 Overloaded Moves . | . . . Propulsion Burnouts . | . . . Robots Hopped . | . . . Potential Cave-ins . | . . . Cave-ins Triggered . | . . . Exploration Rate (%) 32 | 4 83 9 Regions Visited 2 Branch Regions 1 Pre-discovered Areas 1 | . 1 . Known Exits Taken . | . . . Unknown Exits Taken 2 | 1 1 . Scrap Searched . | . . . Spaces Dug . | . . . Terrain Destroyed 21 | . . 21 Melee . | . . . Projectile . | . . . AOE 21 | . . 21 Terrain Rammed . | . . . Walls Destroyed . | . . . Machines Disabled . | . . . Actions | -11 -10 -10 --------- Run | Yrd Mat Sub Total 1000 | 116 776 108 Wait 20 | . 19 1 Move 824 | 81 664 79 Hop . | . . . Pick Up 20 | 4 13 3 Fast Attach 13 | 7 4 2 Attach 4 | . . 4 Detach 4 | . 3 1 Swap 9 | . 7 2 Drop 15 | . 14 1 Fire 91 | 24 52 15 Melee . | . . . Ram . | . . . Kick . | . . . Crush . | . . . Escape Stasis . | . . . Rewire . | . . . Trap . | . . . Miscellaneous . | . . . Route ------- -11/Scrapyard -10/Materials (discovered 5 exits: [*Mat x2] / [*Min x2] / [*Sub]) -10/Subcaves History --------- Turn | Location | Event 19 | -11/Scrapyard | Discovered new exit (range 16) 211 | -11/Scrapyard | Entered Materials 316 | -10/Materials | Build established: Mutant 499 | -10/Materials | Discovered new exit (range 8) 627 | -10/Materials | Discovered new exit (range 14) 709 | -10/Materials | Discovered new exit (range 5) 811 | -10/Materials | Derelicts attacked the area 844 | -10/Materials | Core integrity fell below 50% 980 | -10/Materials | Central database locked down 1111 | -10/Materials | Discovered new exit (range 6) 1349 | -10/Materials | Discovered new exit (range 6) 1357 | -10/Materials | Entered Subcaves 1358 | -10/Subcaves | Approached by a straggling Scientist 1378 | -10/Subcaves | Ambushed by Subdweller buried in earth 1380 | -10/Subcaves | Ambushed by Subdweller buried in earth 1428 | -10/Subcaves | Lost 5 parts (2n3w) 1495 | -10/Subcaves | Ambushed by swarm of Subdwellers 1498 | -10/Subcaves | Ambushed by Subdwellers from Twisted Machinery 1498 | -10/Subcaves | Ambushed by Subdwellers from Twisted Machinery 1531 | -10/Subcaves | Core integrity fell below 20% 1538 | -10/Subcaves | Destroyed by 9I-PQV(R) with Subdweller Laser Last Messages --------------- Scrap Shield. 01505_ KQ-6OG(R) suffers critical hit (Destroy). 01509_ Scrap Shield destroyed. 01514_ VO-34K(g) destroyed. 01516_ BV-E5W(R) destroyed. 01518_ KQ-6OG(R) suffers critical hit (Burn). 01518_ KQ-6OG(R) destroyed. 01518_ LX-G53(g) destroyed. 01518_ Acquired Beamcaster. 01520_ Disposable Heat Sink melted. 01520_ 4M-MHP(R) destroyed. 01520_ Switching to secondary target: TZ-BR6(R). 01523_ J4-KSJ(g) destroyed. 01527_ 9I-PQV(R) affixes Scrap Shield Fragment to Scrap Shield. 01528_ Scrap Shield destroyed. 01528_ TZ-BR6(R) affixes Scrap Shield Fragment to Scrap Shield. 01533_ 9I-PQV(R) affixes Scrap Shield Fragment to Scrap Shield. Map ----- +----------------------------------------------------+ | ?????????????????????????????????????????????????? | | ?????????????????????????????????????????????????? | | ?????????????????????????????????????????????????? | | ?????????????????????????????????????????????????? | | ?????????????????????????????????????????????????? | | ?????????????????????????????????????????????????? | | ?????????????????????????????????????????????????? | | ?????????????????????????????????????????????????? | | ?????????????????????????????????????????????????? | | ?????????????????????????????????#####???????????? | | ?????????????????? ??????????????# #???????????? | | ?????????????????? ? ???????????# #???????????? | | ?????????????????? ???????????# ###???#####?? | | ??????????????????? ?????????### ##?## #?? | | ???????????????????# ????????# ### #??? | | ??????????????????## ????????# #?### | | ????????????????### ??????### #?# | | ????????????????# ??????# #### | | ???????????????## ####??# ### | | ???????????????# #### #### | | ???????????????# #?# % | | ?????????????????????# ### ##?# ## | | ?????????????????????## ##?###??# #### | | ?????????????????####?## ##??????## ##??? | | ????????????????## #?#=%! #???????# ##???? | | ????????????????# ## @ #???????## #????? | | ????????????????# ! ##????????## #????? | | ????????????????## ![%###??????????## #????? | | ?????????????????## RRR##????????????# ????? | | ??????????????????# %!!=##??????????? ????? | | ??????????????????# *!!!% #?????????? #????? | | ????????????# *!* #????????? ##????? | | ????????????# R #??????? ??????? | | ???????????# ### = ] #?????? ??????? | | ???????????#????#####&&&& #??????? ??????? | | ????????????????????#% %* #???????? #??????? | | ????????????????????#!]%! #????????????????? | | ????????????????????#%!! #???????????????? | | ????????????????????&%" ## #??????????????? | | ????????????????????###"??### ?????????????? | | ??????????????????????##????? ?????????????? | | ????????????????????????????? ?????????????? | | ?????????????????????????????? ???????????????? | | ??????????????????????????????? ?????????????????? | | ?????????????????????????????????????????????????? | | ?????????????????????????????????????????????????? | | ?????????????????????????????????????????????????? | | ?????????????????????????????????????????????????? | | ?????????????????????????????????????????????????? | | ?????????????????????????????????????????????????? | +----------------------------------------------------+ Best States ------------- Heat Dissipation 25 Energy Generation 14 Energy Capacity 280 Matter Stores 300 Matter Capacity 300 Sight Range 16 Terrain Scan Range 16 Terrain Scan Density 10 Armor Coverage 800 Evasion (%) 55 Targeting Accuracy 5 Recoil Reduction 2 Item Schematics ----------------- None Robot Schematics ------------------ None Fabricated ------------ Nothing Repaired ---------- Nothing Alien Tech Used ----------------- None Achievements -------------- None Challenges ------------ None Game ------ Seed DirtyAntigravManipulator Manual? 0 Play Time 00:11:44 Cumulative 284.1 hours Start 2025.06.10 @ 11:22:46 End 2025.06.10 @ 11:32:02 Sessions 1 Manual Loads 0 Difficulty Rogue Special Mode None Game No. 173 Rogue 173 Adventurer 0 Explorer 0 Win Type - Total 3 Types 1/0/1/1/0/0/0/0/0/0 Lore% 80 Gallery% 68 Achievement% 63 Wizard Run 0 Options --------- Layout 2 ASCII 0 Keyboard 1 Movement Vi Keybinds 0 Fullscreen 1 Font 16/Tamsyn Map View 55x47 Zoom Use 0% Tactical HUD 1 Map Filters NONE Filters NONE Steam 0 RUN: 7e4adadd-146a-4ea1-9cca-f73cf21e01c0